bitfinex/quotes_BTCUSD_20251208
["timestamp","ask_amount","ask_price","bid_price","bid_amount"]
[1765226209453,0.001,90537.0,90536.0,0.23760282]
[1765226210467,0.001,90537.0,90536.0,0.26390569]
[1765226211643,0.001,90537.0,90536.0,0.26290569]
[1765226211875,0.01104337,90552.0,90550.0,0.22087175]
[1765226212081,0.22086576,90553.0,90551.0,0.0110435]
[1765226212284,0.23190597,90554.0,90551.0,0.23191289]
[1765226212481,0.23190352,90555.0,90552.0,0.23191093]
[1765226212917,0.3340424,90560.0,90556.0,0.01104289]
[1765226213128,0.323,90560.0,90558.0,0.22085293]
[1765226213479,0.323,90560.0,90558.0,0.23643293]
[1765226213772,0.323,90560.0,90558.0,0.22085293]
[1765226213985,0.323,90560.0,90557.0,0.22085454]
[1765226213986,0.04975484,90559.0,90557.0,0.22085454]
[1765226214211,0.03871232,90559.0,90558.0,0.22085293]
[1765226215375,0.01141,90563.0,90562.0,0.22084317]
[1765226215750,0.323,90564.0,90562.0,0.22084317]
[1765226215751,0.323,90564.0,90563.0,0.22084074]
[1765226216095,0.323,90564.0,90561.0,0.01104228]
[1765226216300,0.323,90564.0,90561.0,0.23188571]
[1765226216472,0.004,90563.0,90561.0,0.23188571]
[1765226216672,0.33404191,90564.0,90561.0,0.01104228]
[1765226216894,0.01104191,90564.0,90561.0,0.01104228]
[1765226217100,0.33804191,90564.0,90561.0,0.01104228]
[1765226217910,0.55888029,90564.0,90561.0,0.2318867]
[1765226218319,0.24806541,90562.0,90559.0,0.23189217]
[1765226218724,0.004,90563.0,90562.0,0.22084317]
[1765226218947,0.01141,90573.0,90570.0,0.01104118]
[1765226219147,0.01104081,90573.0,90566.0,0.01104167]
[1765226219349,0.01104118,90570.0,90567.0,0.01104154]
[1765226219525,0.323,90571.0,90568.0,0.23186764]
[1765226219832,0.323,90571.0,90569.0,0.22082378]
[1765226220032,0.323,90571.0,90569.0,0.22094]
[1765226220825,0.324,90571.0,90569.0,0.22094]
[1765226221020,0.36271232,90571.0,90569.0,0.00011622]
[1765226221225,0.62991005,90570.0,90569.0,0.00011622]
[1765226221442,0.65211005,90570.0,90569.0,0.00011622]
[1765226222100,0.58104367,90570.0,90569.0,0.00011622]
[1765226222319,0.33802,90570.0,90569.0,0.00011622]
[1765226222506,0.03971232,90571.0,90570.0,0.22082367]
[1765226222720,0.001,90571.0,90570.0,0.22082367]
[1765226223260,0.01752,90572.0,90571.0,0.22082123]
[1765226223440,0.01752,90572.0,90570.0,0.22082367]
[1765226223441,0.33404069,90574.0,90570.0,0.24779485]
[1765226223596,0.554855,90574.0,90570.0,0.24779485]
[1765226223793,0.23185942,90573.0,90570.0,0.02697118]
[1765226224002,0.23185942,90573.0,90570.0,0.01593]
[1765226224003,0.22081879,90572.0,90570.0,0.01593]
[1765226224197,0.23185972,90572.0,90569.0,0.01115752]
[1765226224381,0.23185972,90572.0,90569.0,0.23198187]
[1765226224582,0.554855,90574.0,90571.0,0.22082123]
[1765226225412,0.004,90572.0,90570.0,0.23186441]
[1765226225618,0.22082132,90571.0,90569.0,0.00011622]
[1765226225825,0.22082367,90570.0,90569.0,0.00011622]
[1765226226948,0.22082132,90571.0,90569.0,0.00011622]
[1765226227146,0.22082132,90571.0,90569.0,0.22094191]
[1765226227629,0.2318604,90572.0,90569.0,0.23198321]
[1765226228048,0.22082123,90571.0,90569.0,0.00011622]
[1765226228611,0.23984367,90570.0,90569.0,0.00011622]
[1765226228806,0.60500367,90570.0,90569.0,0.00011622]
[1765226231487,0.60900367,90570.0,90569.0,0.00011622]
[1765226236650,0.327,90570.0,90569.0,0.00011622]
[1765226236830,0.22482367,90570.0,90569.0,0.00011622]
[1765226237037,0.004,90570.0,90569.0,0.00011622]
[1765226237163,0.22482367,90570.0,90569.0,0.00011622]
[1765226237362,0.327,90570.0,90569.0,0.00011622]
[1765226237576,0.327,90570.0,90569.0,0.22094233]
[1765226237778,0.23183975,90580.0,90575.0,0.01104057]
[1765226237779,0.01104008,90579.0,90575.0,0.01104057]
[1765226237981,0.22104212,90578.0,90575.0,0.2318509]
[1765226238223,0.323,90577.0,90575.0,0.2318509]
[1765226238544,0.323,90577.0,90576.0,0.22080904]
[1765226239042,0.323,90577.0,90575.0,0.01104057]
[1765226239347,0.323,90577.0,90575.0,0.23185158]
[1765226239709,0.32823753,90578.0,90576.0,0.22080904]
[1765226240307,0.54404232,90578.0,90575.0,0.23185158]
[1765226240646,0.004,90577.0,90575.0,0.23185158]
[1765226240825,0.004,90577.0,90576.0,0.22080904]
[1765226241430,0.00023753,90578.0,90577.0,0.2208066]
[1765226241643,0.00523753,90578.0,90577.0,0.2208066]
[1765226242094,0.00023753,90578.0,90577.0,0.2208066]
[1765226242817,0.00123753,90578.0,90577.0,0.2208066]
[1765226243013,0.00123753,90578.0,90575.0,0.23185158]
[1765226243300,0.01104033,90577.0,90574.0,0.22080919]
[1765226243472,0.55484709,90577.0,90575.0,0.22081112]
[1765226243633,0.55484709,90577.0,90574.0,0.22080919]
[1765226243838,0.5548475,90577.0,90574.0,0.22080919]
[1765226244031,0.33404033,90577.0,90575.0,0.22081054]
[1765226244264,0.33404033,90577.0,90573.0,0.23185681]
[1765226244466,0.323,90576.0,90575.0,0.22081096]
[1765226245051,0.323,90576.0,90575.0,0.23658096]
[1765226245646,0.004,90577.0,90576.0,0.22080904]
[1765226246851,0.00023753,90578.0,90576.0,0.22080904]
[1765226247059,0.00023753,90578.0,90577.0,0.2610566]
[1765226247260,0.00023753,90578.0,90577.0,0.26266947]
[1765226248087,0.00123753,90578.0,90577.0,0.28486947]
[1765226248299,0.00523753,90578.0,90577.0,0.26266947]
[1765226248493,0.00123753,90578.0,90577.0,0.26266947]
[1765226248695,0.00023753,90578.0,90577.0,0.26266947]
[1765226248904,0.00123753,90578.0,90577.0,0.26266947]
[1765226249104,0.00123753,90578.0,90577.0,0.26366947]
[1765226250119,0.00123753,90578.0,90577.0,0.27332947]
[1765226255635,0.00123753,90578.0,90577.0,0.29552947]
[1765226256233,0.00123753,90578.0,90577.0,0.27332947]
[1765226256803,0.00123753,90578.0,90577.0,0.29552947]
[1765226257732,0.00123753,90578.0,90577.0,0.29452947]
[1765226258044,0.00023753,90578.0,90577.0,0.29452947]
[1765226258245,0.00023753,90578.0,90577.0,0.29652947]
[1765226258448,0.00023753,90578.0,90577.0,0.29752947]
[1765226259600,0.00023753,90578.0,90577.0,0.29652947]
[1765226259804,0.00023753,90578.0,90577.0,0.29452947]
[1765226260001,0.00023753,90578.0,90577.0,0.29652947]
[1765226260191,0.00023753,90578.0,90577.0,0.29852947]
[1765226261493,0.22073141,90608.0,90577.0,0.29852947]
[1765226261494,0.01103496,90621.0,90609.0,0.22072862]
[1765226261895,0.04974631,90629.0,90609.0,0.26031149]
[1765226262096,0.04974631,90629.0,90609.0,0.28479149]
[1765226262286,0.22068302,90628.0,90609.0,0.28479149]
[1765226262503,0.05011232,90629.0,90609.0,0.26259149]
[1765226262718,0.00278843,90610.0,90609.0,0.26259149]
[1765226263114,0.00978843,90610.0,90609.0,0.26259149]
[1765226263330,0.00078843,90610.0,90609.0,0.26259149]
[1765226263721,0.00378843,90610.0,90609.0,0.26259149]
[1765226267888,0.00378843,90610.0,90609.0,0.00161287]
[1765226268328,0.00378843,90610.0,90609.0,0.22234149]
[1765226269280,0.00378843,90610.0,90609.0,0.00161287]
[1765226269483,0.23176761,90608.0,90605.0,0.23035806]
[1765226269687,0.23176761,90608.0,90605.0,0.24139497]
[1765226269850,0.01103655,90608.0,90605.0,0.00962]
[1765226270051,0.22073593,90606.0,90605.0,0.00962]
[1765226270257,0.01103655,90608.0,90605.0,0.00962]
[1765226270514,0.22073563,90607.0,90605.0,0.00962]
[1765226271447,0.22073593,90606.0,90605.0,0.00962]
[1765226271659,0.00078843,90610.0,90609.0,0.22072862]
[1765226271897,0.00078843,90610.0,90609.0,0.23886149]
[1765226272138,0.00078843,90610.0,90609.0,0.30162149]
[1765226272342,0.00173816,90610.0,90609.0,0.30162149]
[1765226272841,0.00573816,90610.0,90609.0,0.30162149]
[1765226275394,0.01103192,90646.0,90619.0,0.22070426]
[1765226275600,0.00047723,90620.0,90619.0,0.23883713]
[1765226275751,0.00047723,90620.0,90619.0,0.28411713]
[1765226278079,0.00047723,90620.0,90619.0,0.28611713]
[1765226278485,0.00047723,90620.0,90619.0,0.28711713]
[1765226278685,0.00047723,90620.0,90619.0,0.30459713]
[1765226279548,0.00047723,90620.0,90619.0,0.28239713]
[1765226280167,0.00047723,90620.0,90619.0,0.30459713]
[1765226280868,0.00047723,90620.0,90619.0,0.28239713]
[1765226281079,0.22147577,90620.0,90619.0,0.003]
[1765226281283,0.00077394,90620.0,90619.0,0.01952]
[1765226281663,0.00077394,90620.0,90619.0,0.01652]
[1765226281865,0.00077394,90620.0,90619.0,0.23722426]
[1765226282090,0.00077394,90620.0,90619.0,0.01752]
[1765226282248,0.00077394,90620.0,90619.0,0.22170426]
[1765226282453,0.00077394,90620.0,90619.0,0.001]
[1765226282728,0.00077394,90620.0,90617.0,0.01103545]
[1765226282938,0.00047723,90620.0,90619.0,0.22170426]
[1765226283212,0.00047723,90620.0,90619.0,0.26203713]
[1765226283364,0.00047723,90620.0,90619.0,0.26291713]
[1765226283570,0.00077394,90620.0,90619.0,0.26291713]
[1765226284122,0.00077394,90620.0,90619.0,0.28511713]
[1765226284483,0.00077394,90620.0,90619.0,0.28411713]
[1765226285489,0.00077394,90620.0,90619.0,0.28511713]
[1765226285728,0.00077394,90620.0,90619.0,0.28811713]
[1765226286087,0.00077394,90620.0,90619.0,0.28711713]
[1765226286309,0.00077394,90620.0,90619.0,0.26691713]
[1765226286510,0.00077394,90620.0,90619.0,0.28911713]
[1765226288563,0.00077394,90620.0,90619.0,0.22731713]
[1765226288764,0.00077394,90620.0,90619.0,0.005]
[1765226288987,0.00077394,90620.0,90619.0,0.22570426]
[1765226289566,0.01668394,90620.0,90619.0,0.22370426]
[1765226289772,0.26037577,90620.0,90619.0,0.003]
[1765226290410,0.01668394,90620.0,90619.0,0.22370426]
[1765226290611,0.00077394,90620.0,90619.0,0.22370426]
[1765226291007,0.00077394,90620.0,90619.0,0.22070426]
[1765226291206,0.00077394,90620.0,90619.0,0.22170426]
[1765226291540,0.00077394,90620.0,90619.0,0.002]
[1765226291737,0.23738577,90620.0,90619.0,0.001]
[1765226291948,0.23738577,90620.0,90617.0,0.23174404]
[1765226291949,0.22070449,90619.0,90617.0,0.01103545]
[1765226292238,0.27111415,90620.0,90617.0,0.01103545]
[1765226292430,0.00023737,90618.0,90617.0,0.01103545]
[1765226293326,0.01656737,90618.0,90616.0,0.23174244]
[1765226293551,0.01656737,90618.0,90606.0,0.01103679]
[1765226293552,0.01103618,90611.0,90606.0,0.01103679]
[1765226293729,0.23176709,90609.0,90606.0,0.23177132]
[1765226293930,0.0110363,90610.0,90607.0,0.22073196]
[1765226294090,0.0110363,90610.0,90607.0,0.23176863]
[1765226294498,0.323,90614.0,90612.0,0.22072131]
[1765226294700,0.323,90614.0,90613.0,0.22071888]
[1765226295127,0.00023737,90618.0,90617.0,0.22070913]
[1765226295336,0.00023737,90618.0,90613.0,0.23175482]
[1765226295558,0.01103643,90609.0,90603.0,0.01103716]
[1765226295911,0.01232,90606.0,90602.0,0.01103728]
[1765226296129,0.01232,90606.0,90605.0,0.22073836]
[1765226296334,0.01232,90606.0,90604.0,0.2207394]
[1765226296563,0.01232,90606.0,90605.0,0.22073836]
[1765226297326,0.03871232,90608.0,90607.0,0.22073349]
[1765226298418,0.03871232,90608.0,90607.0,0.22173349]
[1765226298636,0.03871232,90608.0,90607.0,0.002]
[1765226298807,0.03871232,90608.0,90607.0,0.22273349]
[1765226299898,0.07757232,90608.0,90607.0,0.002]
[1765226300101,0.05504232,90608.0,90607.0,0.002]
[1765226300344,0.27577338,90608.0,90607.0,0.002]
[1765226303008,0.71730134,90608.0,90607.0,0.002]
[1765226303203,0.73950134,90608.0,90607.0,0.002]
[1765226303744,0.73950134,90608.0,90607.0,0.001]
[1765226303889,0.323,90595.0,90592.0,0.0110385]
[1765226304226,0.323,90595.0,90594.0,0.22076517]
[1765226304437,0.323,90595.0,90592.0,0.2318065]
[1765226304438,0.323,90595.0,90592.0,0.0110385]
[1765226304612,0.323,90595.0,90594.0,0.22076517]
[1765226305399,0.001,90595.0,90594.0,0.22076517]
[1765226306426,0.01733,90595.0,90594.0,0.22076517]
[1765226307198,0.001,90595.0,90594.0,0.22076517]
[1765226307417,0.01733,90595.0,90594.0,0.22076517]
[1765226308422,0.001,90595.0,90594.0,0.22076517]
[1765226327271,0.001,90595.0,90594.0,0.23650517]
[1765226327482,0.001,90595.0,90594.0,0.26143804]
[1765226327658,0.001,90595.0,90594.0,0.28363804]
[1765226327866,0.001,90595.0,90594.0,0.26143804]
[1765226328496,0.001,90595.0,90594.0,0.28363804]
[1765226328738,0.01103594,90613.0,90607.0,0.22073349]
[1765226328935,0.34048,90614.0,90607.0,0.22073349]
[1765226329566,0.01103594,90613.0,90607.0,0.22073349]
[1765226329928,0.03971232,90608.0,90607.0,0.22073349]
[1765226330351,0.04071232,90608.0,90607.0,0.22073349]
[1765226331255,0.002,90608.0,90607.0,0.26140636]
[1765226331601,0.002,90608.0,90607.0,0.23808636]
[1765226331980,0.002,90608.0,90607.0,0.22234636]
[1765226332870,0.002,90608.0,90607.0,0.26140636]
[1765226333052,0.00047723,90620.0,90617.0,0.22070913]
[1765226333245,0.00047723,90620.0,90617.0,0.255542]
[1765226333512,0.00047723,90620.0,90617.0,0.301062]
[1765226335127,0.00047723,90620.0,90617.0,0.304062]
[1765226335290,0.00047723,90620.0,90617.0,0.281862]
[1765226335498,0.00047723,90620.0,90617.0,0.306062]
[1765226335720,0.00047723,90620.0,90617.0,0.283862]
[1765226336131,0.00047723,90620.0,90617.0,0.306062]
[1765226340548,4.6e-06,90620.0,90619.0,0.22070426]
[1765226340724,4.6e-06,90620.0,90619.0,0.26025713]
[1765226340984,4.6e-06,90620.0,90619.0,0.28357713]
[1765226341710,4.6e-06,90620.0,90619.0,0.28557713]
[1765226341909,4.6e-06,90620.0,90619.0,0.28857713]
[1765226342112,4.6e-06,90620.0,90619.0,0.26637713]
[1765226342311,4.6e-06,90620.0,90619.0,0.28385713]
[1765226343404,4.6e-06,90620.0,90619.0,0.30605713]
[1765226346555,4.6e-06,90620.0,90619.0,0.28385713]
[1765226349240,4.6e-06,90620.0,90619.0,0.02235287]
[1765226349452,4.6e-06,90620.0,90619.0,0.24305713]
[1765226350336,4.6e-06,90620.0,90619.0,0.24005713]
[1765226350545,4.6e-06,90620.0,90619.0,0.23805713]
[1765226350748,4.6e-06,90620.0,90619.0,0.24205713]
[1765226352144,4.6e-06,90620.0,90619.0,0.22631713]
[1765226352923,4.6e-06,90620.0,90619.0,0.22470426]
[1765226353122,4.6e-06,90620.0,90619.0,0.004]
[1765226353521,4.6e-06,90620.0,90619.0,0.22470426]
[1765226353727,0.22070643,90620.0,90619.0,0.002]
[1765226353925,0.01103521,90619.0,90616.0,0.00962]
[1765226354150,0.01103582,90614.0,90611.0,0.01103618]
[1765226354355,0.01103582,90614.0,90606.0,0.01103679]
[1765226354356,0.03864606,90612.0,90606.0,0.01103679]
[1765226354565,0.03864606,90612.0,90608.0,0.23176528]
[1765226354566,0.25936758,90612.0,90608.0,0.23176528]
[1765226354769,0.02761,90612.0,90609.0,0.01103643]
[1765226354994,0.02761,90612.0,90611.0,0.22072375]
[1765226355210,0.01183,90612.0,90611.0,0.22072375]
[1765226355418,0.0110357,90615.0,90613.0,0.2207188]
[1765226355630,0.22071948,90613.0,90611.0,0.002]
[1765226355808,0.24753464,90614.0,90611.0,0.22272289]
[1765226356005,0.02426,90614.0,90612.0,0.22071973]
[1765226356210,0.02426,90614.0,90611.0,0.23375987]
[1765226356211,0.01578,90613.0,90611.0,0.23375987]
[1765226356423,0.04004,90613.0,90611.0,0.23375987]
[1765226356822,0.04004,90613.0,90611.0,0.002]
[1765226356823,0.04004,90612.0,90611.0,0.002]
[1765226357036,0.01578,90612.0,90611.0,0.002]
[1765226357321,0.23175328,90614.0,90610.0,0.23176192]
[1765226357520,0.01103582,90614.0,90612.0,0.22072069]
[1765226358055,0.03871232,90616.0,90613.0,0.22071814]
[1765226358251,0.03871232,90616.0,90614.0,0.220715]
[1765226359445,0.03871232,90616.0,90609.0,0.01103643]
[1765226359446,0.01103582,90614.0,90609.0,0.01103643]
[1765226359647,0.01578,90610.0,90609.0,0.23176448]
[1765226359984,0.04974789,90616.0,90612.0,0.23175514]
[1765226361040,0.27046149,90616.0,90613.0,0.22071734]
[1765226361316,0.27146149,90616.0,90613.0,0.22071734]
[1765226361515,0.2207141,90615.0,90613.0,0.01103594]
[1765226361732,0.01578,90614.0,90612.0,0.23175267]
[1765226362287,0.04004,90614.0,90612.0,0.23175267]
[1765226362911,0.2317498,90615.0,90612.0,0.23175267]
[1765226363116,0.0110357,90615.0,90613.0,0.22071822]
[1765226363319,0.01578,90613.0,90612.0,0.01103606]
[1765226363526,0.01103691,90605.0,90600.0,0.23178684]
[1765226363748,0.02761,90603.0,90600.0,0.01103752]
[1765226364098,0.02761,90603.0,90602.0,0.22074567]
[1765226364306,0.23257557,90603.0,90600.0,0.23178782]
[1765226364449,0.01183,90603.0,90601.0,0.22074707]
[1765226364650,0.01183,90603.0,90602.0,0.22074567]
[1765226364864,0.25942589,90616.0,90613.0,0.23175274]
[1765226364865,0.03871232,90616.0,90613.0,0.23175274]
[1765226365045,0.24358169,90615.0,90612.0,0.01103606]
[1765226365241,0.01183,90615.0,90612.0,0.01103606]
[1765226365487,0.01183,90615.0,90613.0,0.22071881]
[1765226366093,0.01183,90615.0,90614.0,0.22071644]
[1765226366294,0.23254498,90615.0,90612.0,0.2317552]
[1765226366630,0.001,90615.0,90614.0,0.22071644]
[1765226366980,0.001,90615.0,90612.0,0.2317552]
[1765226367299,0.01183,90615.0,90612.0,0.2317552]
[1765226367496,0.01283,90615.0,90613.0,0.22071653]
[1765226367918,0.001,90615.0,90614.0,0.22071644]
[1765226368528,0.001,90615.0,90612.0,0.01103606]
[1765226368687,0.03871232,90616.0,90615.0,0.220714]
[1765226369250,4.6e-06,90620.0,90619.0,0.22070426]
[1765226369754,4.6e-06,90620.0,90619.0,0.23723426]
[1765226370077,4.6e-06,90620.0,90619.0,0.22070426]
[1765226371104,4.6e-06,90620.0,90602.0,0.01123287]
[1765226371105,0.0518746,90620.0,90602.0,0.01123287]
[1765226371307,0.01103679,90606.0,90600.0,0.01103752]
[1765226371661,0.0228674,90601.0,90598.0,0.23179194]
[1765226371855,0.22076684,90594.0,90590.0,0.01103874]
[1765226372072,0.04975021,90597.0,90591.0,0.01103862]
[1765226372268,0.01103813,90595.0,90592.0,0.0110385]
[1765226372470,0.01103801,90596.0,90593.0,0.01103838]
[1765226372645,0.03871232,90597.0,90594.0,0.01103825]
[1765226372832,0.03871232,90597.0,90595.0,0.22076248]
[1765226373051,0.03871232,90597.0,90596.0,0.22076029]
[1765226374216,0.03871232,90597.0,90596.0,0.23729029]
[1765226374767,0.03871232,90597.0,90596.0,0.22076029]
[1765226375410,0.03871232,90597.0,90596.0,0.22576029]
[1765226375776,0.05054232,90611.0,90609.0,0.22072862]
[1765226375777,0.03871232,90611.0,90609.0,0.22072862]
[1765226376531,0.03871232,90611.0,90610.0,0.22072618]
[1765226377139,0.03971232,90611.0,90610.0,0.22072618]
[1765226377958,0.001,90611.0,90610.0,0.23725618]
[1765226378186,0.001,90611.0,90610.0,0.26308905]
[1765226378404,4.6e-06,90620.0,90619.0,0.22070426]
[1765226379932,4.6e-06,90620.0,90619.0,0.26145426]
[1765226380473,4.6e-06,90620.0,90619.0,0.26306713]
[1765226383188,4.6e-06,90620.0,90619.0,0.28526713]
[1765226383594,4.6e-06,90620.0,90619.0,0.26306713]
[1765226383817,4.6e-06,90620.0,90619.0,0.28526713]
[1765226384762,4.6e-06,90620.0,90619.0,0.28726713]
[1765226385339,4.6e-06,90620.0,90619.0,0.29126713]
[1765226387567,4.6e-06,90620.0,90619.0,0.26906713]
[1765226387774,4.6e-06,90620.0,90619.0,0.29126713]
[1765226388602,4.6e-06,90620.0,90619.0,0.26906713]
[1765226389382,4.6e-06,90620.0,90619.0,0.22831713]
[1765226390140,4.6e-06,90620.0,90619.0,0.22631713]
[1765226390441,4.6e-06,90620.0,90619.0,0.24186713]
[1765226390635,4.6e-06,90620.0,90619.0,0.24286713]
[1765226391006,4.6e-06,90620.0,90619.0,0.24186713]
[1765226391217,4.6e-06,90620.0,90619.0,0.23786713]
[1765226391418,4.6e-06,90620.0,90619.0,0.23986713]
[1765226391859,4.6e-06,90620.0,90619.0,0.23786713]
[1765226392178,4.6e-06,90620.0,90619.0,0.23886713]
[1765226395881,4.6e-06,90620.0,90619.0,0.22331713]
[1765226397874,4.6e-06,90620.0,90619.0,0.23886713]
[1765226400288,0.0387746,90620.0,90619.0,0.001]
[1765226400703,0.0160346,90620.0,90619.0,0.001]
[1765226400911,4.6e-06,90620.0,90619.0,0.001]
[1765226401070,0.23673643,90620.0,90619.0,0.001]
[1765226401275,0.25947643,90620.0,90619.0,0.001]
[1765226401483,0.22075542,90598.0,90596.0,0.01103557]
[1765226401810,0.23178329,90602.0,90599.0,0.23179062]
[1765226402013,0.0110374,90601.0,90598.0,0.01103777]
[1765226402304,0.0110374,90601.0,90597.0,0.22075745]
[1765226402305,0.01103752,90600.0,90597.0,0.01103789]
[1765226402528,0.23178583,90601.0,90597.0,0.23179355]
[1765226402732,0.01103764,90599.0,90594.0,0.01103825]
[1765226403011,0.01603,90598.0,90597.0,0.22075786]
[1765226403212,0.04974948,90603.0,90601.0,0.22074679]
[1765226403510,0.27049465,90603.0,90599.0,0.23178909]
[1765226404215,0.03871232,90603.0,90599.0,0.23178909]
[1765226404675,0.03871232,90603.0,90602.0,0.22074567]
[1765226404879,0.03971232,90603.0,90602.0,0.22074567]
[1765226405554,0.03871232,90603.0,90602.0,0.22074567]
[1765226405962,0.03971232,90603.0,90602.0,0.22074567]
[1765226406371,0.05574232,90603.0,90602.0,0.22074567]
[1765226407277,0.05574232,90603.0,90600.0,0.01103752]
[1765226407478,0.05574232,90603.0,90602.0,0.22074567]
[1765226408068,0.05474232,90603.0,90602.0,0.22074567]
[1765226408476,0.05574232,90603.0,90602.0,0.22074567]
[1765226408662,0.05474232,90603.0,90602.0,0.22074567]
[1765226409084,0.05574232,90603.0,90602.0,0.22074567]
[1765226410671,0.001,90603.0,90602.0,0.24591567]
[1765226411113,0.001,90603.0,90602.0,0.23036567]
[1765226412724,0.23178495,90602.0,90598.0,0.01103777]
[1765226412898,0.001,90603.0,90602.0,0.22074567]
[1765226413303,0.001,90603.0,90599.0,0.23179051]
[1765226413466,0.01618,90600.0,90597.0,0.01103789]
[1765226413687,0.01618,90599.0,90594.0,0.01103825]
[1765226414067,0.01618,90599.0,90597.0,0.22075569]
[1765226415044,0.01618,90599.0,90598.0,0.22075542]
[1765226415253,0.01618,90599.0,90597.0,0.22075569]
[1765226415462,0.03951,90598.0,90589.0,0.01103886]
[1765226415615,0.23180049,90596.0,90592.0,0.23180653]
[1765226415825,0.01103801,90596.0,90592.0,0.0110385]
[1765226416006,0.02333,90595.0,90593.0,0.2207676]
[1765226416450,0.01186,90597.0,90596.0,0.22076029]
[1765226417461,0.01186,90597.0,90594.0,0.01103825]
[1765226417658,0.01186,90597.0,90596.0,0.22076029]
[1765226418099,0.2207624,90596.0,90592.0,0.22076975]
[1765226418274,0.22080416,90578.0,90572.0,0.01104093]
[1765226418482,0.01167,90580.0,90574.0,0.22081372]
[1765226418679,0.22081466,90574.0,90571.0,0.01104106]
[1765226418878,0.01104045,90576.0,90573.0,0.01104081]
[1765226419084,0.0110402,90578.0,90574.0,0.01104069]
[1765226419270,0.01167,90580.0,90578.0,0.2208021]
[1765226419479,0.01167,90580.0,90578.0,0.22119053]
[1765226419680,0.01167,90580.0,90579.0,0.22080173]
[1765226419874,0.33486,90592.0,90590.0,0.01103874]
[1765226420096,0.33486,90592.0,90589.0,0.01103886]
[1765226420299,0.33486,90592.0,90591.0,0.22077248]
[1765226420574,0.01103764,90599.0,90592.0,0.22077004]
[1765226420790,0.02851752,90600.0,90592.0,0.22077004]
[1765226421164,0.01748,90600.0,90592.0,0.22077004]
[1765226421542,0.02851752,90600.0,90592.0,0.22077004]
[1765226421753,0.01186,90608.0,90604.0,0.01103704]
[1765226421896,0.58244714,90607.0,90604.0,0.23177749]
[1765226422095,0.38504232,90607.0,90604.0,0.23177749]
[1765226422297,0.38504232,90607.0,90606.0,0.22073593]
[1765226422550,0.5,90664.0,90615.0,0.0110357]
[1765226422551,0.01186,90619.0,90615.0,0.0110357]
[1765226422790,0.01103448,90625.0,90618.0,0.2207067]
[1765226422791,0.02851448,90625.0,90618.0,0.2207067]
[1765226423007,0.02851448,90625.0,90616.0,0.01103557]
[1765226423008,0.01748,90625.0,90623.0,0.220693]
[1765226423494,0.01748,90625.0,90623.0,0.22080922]
[1765226423704,0.01748,90625.0,90623.0,0.00011622]
[1765226424146,0.323,90624.0,90623.0,0.00011622]
[1765226424344,0.33918,90624.0,90623.0,0.00011622]
[1765226424714,0.36251,90624.0,90623.0,0.00011622]
[1765226425322,0.38471,90624.0,90623.0,0.00011622]
[1765226425752,0.38671,90624.0,90623.0,0.00011622]
[1765226426321,0.06371,90624.0,90623.0,0.00011622]
[1765226426517,0.38971,90624.0,90623.0,0.00011622]
[1765226427215,0.47904011,90624.0,90623.0,0.00011622]
[1765226428393,0.6997322,90624.0,90623.0,0.00011622]
[1765226429368,0.71005678,90624.0,90623.0,0.00011622]
[1765226429989,0.6832502,90624.0,90623.0,0.00011622]
[1765226431145,0.69428711,90624.0,90623.0,0.00011622]
[1765226432123,0.34992508,90624.0,90623.0,0.00011622]
[1765226432330,0.67292508,90624.0,90623.0,0.00011622]
[1765226433903,0.69040508,90624.0,90623.0,0.00011622]
[1765226441054,0.77668436,90624.0,90623.0,0.00011622]
[1765226441192,0.80920884,90624.0,90623.0,0.00011622]
[1765226441398,0.84236836,90624.0,90623.0,0.00011622]
[1765226441802,0.73388908,90624.0,90623.0,0.00011622]
[1765226453064,0.71640908,90624.0,90623.0,0.00011622]
[1765226453270,0.25935209,90624.0,90623.0,0.00011622]
[1765226453509,0.28280209,90624.0,90623.0,0.00011622]
[1765226454045,0.60580209,90624.0,90623.0,0.00011622]
[1765226454898,0.58832209,90624.0,90623.0,0.00011622]
[1765226455562,0.328,90624.0,90623.0,0.00011622]
[1765226456071,0.328,90624.0,90623.0,0.22081074]
[1765226456394,0.005,90624.0,90623.0,0.26163361]
[1765226456805,0.005,90624.0,90623.0,0.28383361]
[1765226457222,0.0004,90630.0,90629.0,0.0222]
[1765226457436,0.0004,90630.0,90629.0,0.27785278]
[1765226457652,0.0004,90630.0,90629.0,0.30118278]
[1765226458280,0.00023731,90634.0,90633.0,0.24287017]
[1765226458492,0.00023731,90634.0,90633.0,0.28369304]
[1765226459768,0.00023731,90634.0,90633.0,0.28469304]
[1765226460082,0.00023731,90634.0,90633.0,0.28369304]
[1765226460288,0.00023731,90634.0,90633.0,0.28769304]
[1765226460496,0.00023731,90634.0,90633.0,0.29069304]
[1765226460698,0.0004,90660.0,90649.0,0.24283122]
[1765226460903,0.0004,90660.0,90649.0,0.26023409]
[1765226461148,0.0004,90660.0,90649.0,0.28418409]
[1765226461491,0.00087451,90650.0,90649.0,0.28418409]
[1765226461906,0.00087451,90650.0,90649.0,0.28518409]
[1765226462114,0.00087451,90650.0,90649.0,0.26698409]
[1765226464732,0.00087451,90650.0,90649.0,0.28918409]
[1765226466394,0.00087451,90650.0,90649.0,0.26698409]
[1765226466595,0.00087451,90650.0,90649.0,0.28918409]
[1765226470845,0.00087451,90650.0,90649.0,0.24303409]
[1765226471095,0.00087451,90650.0,90649.0,0.28446409]
[1765226472352,0.00087451,90650.0,90649.0,0.30666409]
[1765226477083,0.00087451,90650.0,90649.0,0.26698409]
[1765226477295,0.00087451,90650.0,90649.0,0.28446409]
[1765226479103,0.01600451,90650.0,90649.0,0.22563122]
[1765226479270,0.01600451,90650.0,90649.0,0.005]
[1765226479271,0.5844933,90650.0,90649.0,0.005]
[1765226479483,0.6066933,90650.0,90649.0,0.005]
[1765226479910,0.5844933,90650.0,90649.0,0.004]
[1765226480442,0.5844933,90650.0,90629.0,0.01103399]
[1765226480443,0.0110329,90638.0,90629.0,0.01103399]
[1765226480640,0.03871232,90635.0,90634.0,0.01103338]
[1765226481043,0.07870232,90635.0,90634.0,0.01103338]
[1765226482985,0.07870232,90635.0,90634.0,0.01303338]
[1765226483858,0.07870232,90635.0,90634.0,0.23370112]
[1765226484126,0.00023727,90642.0,90641.0,0.22065069]
[1765226485898,0.04022727,90642.0,90638.0,0.0110329]
[1765226486133,0.04022727,90642.0,90639.0,0.01103277]
[1765226486384,0.00023727,90642.0,90641.0,0.22165069]
[1765226487096,0.00123727,90642.0,90641.0,0.001]
[1765226487325,0.00123727,90642.0,90639.0,0.01103277]
[1765226487326,0.05225968,90642.0,90639.0,0.01103277]
[1765226487538,0.05125968,90642.0,90639.0,0.01103277]
[1765226487756,0.02639968,90642.0,90639.0,0.01103277]
[1765226487982,0.22065143,90641.0,90639.0,0.01103277]